[Event "Late-Titled-Tuesday-Blitz-June-25-2024"]
[Site "Chess.com"]
[Date "2024.06.25"]
[Round "2"]
[White "Sl4werThanYou"]
[Black "glebus008"]
[Result "1-0"]
[WhiteElo "2703"]
[BlackElo "2384"]
[TimeControl "180+1"]
[EndTime "14:13:01 PDT"]
[Termination "Sl4werThanYou won by checkmate"]

1. d4 {[%clk 0:03:00.9]} 1... d5 {[%clk 0:02:59.5]} 2. Nf3 {[%clk 0:02:59.6]}
2... Nf6 {[%clk 0:02:58.9]} 3. c4 {[%clk 0:03:00]} 3... e6 {[%clk 0:02:56.1]} 4.
cxd5 {[%clk 0:02:39]} 4... exd5 {[%clk 0:02:54.6]} 5. Qc2 {[%clk 0:02:38.9]}
5... c6 {[%clk 0:02:53.3]} 6. Bg5 {[%clk 0:02:37.6]} 6... Be7 {[%clk 0:02:52.9]}
7. e3 {[%clk 0:02:37.3]} 7... O-O {[%clk 0:02:51.3]} 8. Bd3 {[%clk 0:02:36.3]}
8... h6 {[%clk 0:02:51.2]} 9. Bh4 {[%clk 0:02:35.9]} 9... Ne8 {[%clk 0:02:46.5]}
10. Bxe7 {[%clk 0:02:36.8]} 10... Qxe7 {[%clk 0:02:46.7]} 11. Nc3 {[%clk
0:02:35.7]} 11... Nd6 {[%clk 0:02:44.8]} 12. O-O {[%clk 0:02:28]} 12... Qf6
{[%clk 0:02:38.7]} 13. b4 {[%clk 0:02:25.4]} 13... a6 {[%clk 0:02:38.3]} 14. a4
{[%clk 0:02:25.1]} 14... Bf5 {[%clk 0:02:33.6]} 15. Bxf5 {[%clk 0:02:18.4]}
15... Nxf5 {[%clk 0:02:28.7]} 16. b5 {[%clk 0:02:17.6]} 16... axb5 {[%clk
0:02:28.7]} 17. axb5 {[%clk 0:02:16.9]} 17... Rxa1 {[%clk 0:02:29.6]} 18. Rxa1
{[%clk 0:02:17]} 18... Nd7 {[%clk 0:02:29.6]} 19. bxc6 {[%clk 0:02:12.8]} 19...
bxc6 {[%clk 0:02:29.5]} 20. Ra6 {[%clk 0:02:12.9]} 20... Qd6 {[%clk 0:02:06.1]}
21. Qxf5 {[%clk 0:02:10.8]} 21... Qb4 {[%clk 0:02:04.5]} 22. Qxd7 {[%clk
0:02:06.8]} 22... Qxc3 {[%clk 0:02:02.5]} 23. h4 {[%clk 0:02:05.1]} 23... Rb8
{[%clk 0:01:56.6]} 24. Rxc6 {[%clk 0:02:04.1]} 24... Rb1+ {[%clk 0:01:55.9]} 25.
Kh2 {[%clk 0:02:04.4]} 25... Qa1 {[%clk 0:01:55.8]} 26. Rc8+ {[%clk 0:02:04.5]}
26... Kh7 {[%clk 0:01:55.6]} 27. Qf5+ {[%clk 0:02:05.4]} 27... g6 {[%clk
0:01:56.3]} 28. Qxf7# {[%clk 0:02:06.3]} 1-0

[Event "Late-Titled-Tuesday-Blitz-June-25-2024"]
[Site "Chess.com"]
[Date "2024.06.25"]
[Round "2"]
[White "stasOR4ik"]
[Black "randy296"]
[Result "1-0"]
[WhiteElo "2456"]
[BlackElo "2066"]
[TimeControl "180+1"]
[EndTime "14:13:37 PDT"]
[Termination "stasOR4ik won by resignation"]

1. e4 {[%clk 0:02:59.8]} 1... c5 {[%clk 0:02:57.4]} 2. c3 {[%clk 0:02:51.4]}
2... Nf6 {[%clk 0:02:56.9]} 3. e5 {[%clk 0:02:51.5]} 3... Nd5 {[%clk 0:02:57.1]}
4. Nf3 {[%clk 0:02:52.3]} 4... e6 {[%clk 0:02:57.3]} 5. d4 {[%clk 0:02:51.2]}
5... d6 {[%clk 0:02:57.6]} 6. exd6 {[%clk 0:02:46.7]} 6... Bxd6 {[%clk
0:02:46.8]} 7. Bg5 {[%clk 0:02:45.7]} 7... Qb6 {[%clk 0:02:38.8]} 8. dxc5 {[%clk
0:02:45.9]} 8... Bxc5 {[%clk 0:02:38.6]} 9. Qc2 {[%clk 0:02:37]} 9... Nc6 {[%clk
0:02:27.9]} 10. Bc4 {[%clk 0:02:33.7]} 10... O-O {[%clk 0:02:16.9]} 11. O-O
{[%clk 0:02:25.3]} 11... h6 {[%clk 0:02:12.6]} 12. Bh4 {[%clk 0:02:22.4]} 12...
Nf4 {[%clk 0:02:08.1]} 13. b4 {[%clk 0:02:06.2]} 13... Be7 {[%clk 0:01:58.8]}
14. Bg3 {[%clk 0:02:01.3]} 14... Nh5 {[%clk 0:01:52.3]} 15. Nbd2 {[%clk
0:02:00.2]} 15... Nxg3 {[%clk 0:01:51.7]} 16. hxg3 {[%clk 0:02:01.1]} 16... Bf6
{[%clk 0:01:50.8]} 17. Ne4 {[%clk 0:02:00.1]} 17... Be5 {[%clk 0:01:39.8]} 18.
b5 {[%clk 0:01:58]} 18... Nb4 {[%clk 0:01:37.8]} 19. Qe2 {[%clk 0:01:39.4]}
19... Bd6 {[%clk 0:01:32]} 20. Nxd6 {[%clk 0:01:35.7]} 1-0

[Event "Late-Titled-Tuesday-Blitz-June-25-2024"]
[Site "Chess.com"]
[Date "2024.06.25"]
[Round "2"]
[White "xakevicius91"]
[Black "chess_sharparchitect"]
[Result "0-1"]
[WhiteElo "2595"]
[BlackElo "2340"]
[TimeControl "180+1"]
[EndTime "14:13:43 PDT"]
[Termination "chess_sharparchitect won by resignation"]

1. e4 {[%clk 0:03:00.9]} 1... c5 {[%clk 0:02:59]} 2. Nf3 {[%clk 0:03:00.8]} 2...
d6 {[%clk 0:02:58.6]} 3. d4 {[%clk 0:03:00.8]} 3... cxd4 {[%clk 0:02:58.8]} 4.
Nxd4 {[%clk 0:03:01.7]} 4... Nf6 {[%clk 0:02:59.1]} 5. Nc3 {[%clk 0:03:01.9]}
5... a6 {[%clk 0:02:59.6]} 6. f3 {[%clk 0:03:00.5]} 6... e5 {[%clk 0:02:57.6]}
7. Nb3 {[%clk 0:03:00.6]} 7... Be6 {[%clk 0:02:35]} 8. Be3 {[%clk 0:02:07.4]}
8... Nbd7 {[%clk 0:02:15.6]} 9. Qd2 {[%clk 0:02:05.4]} 9... h5 {[%clk
0:02:09.1]} 10. Nd5 {[%clk 0:01:59.4]} 10... Bxd5 {[%clk 0:02:02.7]} 11. exd5
{[%clk 0:02:00.3]} 11... b5 {[%clk 0:01:51.1]} 12. Be2 {[%clk 0:01:44.8]} 12...
Nb6 {[%clk 0:01:46.9]} 13. Bxb6 {[%clk 0:01:44.5]} 13... Qxb6 {[%clk 0:01:46.5]}
14. c3 {[%clk 0:01:40]} 14... g6 {[%clk 0:01:29.8]} 15. O-O-O {[%clk 0:01:31.9]}
15... Bh6 {[%clk 0:01:28.3]} 0-1

[Event "Late-Titled-Tuesday-Blitz-June-25-2024"]
[Site "Chess.com"]
[Date "2024.06.25"]
[Round "2"]
[White "BerlinDrawer"]
[Black "FairChess_on_YouTube"]
[Result "0-1"]
[WhiteElo "2636"]
[BlackElo "3089"]
[TimeControl "180+1"]
[EndTime "14:13:52 PDT"]
[Termination "FairChess_on_YouTube won by resignation"]

1. d4 {[%clk 0:03:00.9]} 1... Nf6 {[%clk 0:02:59.4]} 2. c4 {[%clk 0:02:59.5]}
2... e6 {[%clk 0:02:59.5]} 3. Nf3 {[%clk 0:02:58.8]} 3... b6 {[%clk 0:02:58.1]}
4. g3 {[%clk 0:02:58.2]} 4... c6 {[%clk 0:02:58.5]} 5. Bg2 {[%clk 0:02:54.9]}
5... Ba6 {[%clk 0:02:58.6]} 6. b3 {[%clk 0:02:52.5]} 6... d5 {[%clk 0:02:58.6]}
7. Nbd2 {[%clk 0:02:47.9]} 7... Be7 {[%clk 0:02:57.9]} 8. O-O {[%clk 0:02:47.2]}
8... O-O {[%clk 0:02:58.6]} 9. Bb2 {[%clk 0:02:46.7]} 9... Nbd7 {[%clk
0:02:58.4]} 10. Re1 {[%clk 0:02:43]} 10... c5 {[%clk 0:02:55.4]} 11. e4 {[%clk
0:02:37.1]} 11... dxc4 {[%clk 0:02:53.8]} 12. e5 {[%clk 0:02:24.1]} 12... c3
{[%clk 0:02:49.5]} 13. Bxc3 {[%clk 0:02:14.6]} 13... Nd5 {[%clk 0:02:48.9]} 14.
Bb2 {[%clk 0:02:14.6]} 14... cxd4 {[%clk 0:02:48.1]} 15. Nxd4 {[%clk 0:02:14.9]}
15... Rc8 {[%clk 0:02:44]} 16. a3 {[%clk 0:02:11.3]} 16... Nc5 {[%clk
0:02:43.6]} 17. Nc4 {[%clk 0:02:07]} 17... Nxb3 {[%clk 0:02:42.6]} 18. Qxb3
{[%clk 0:02:04.2]} 18... Bxc4 {[%clk 0:02:42.4]} 19. Qd1 {[%clk 0:02:04.2]}
19... b5 {[%clk 0:02:41.1]} 20. h4 {[%clk 0:02:02.3]} 20... Qb6 {[%clk
0:02:41.1]} 21. Qg4 {[%clk 0:01:52.4]} 21... Bc5 {[%clk 0:02:33.9]} 22. h5
{[%clk 0:01:47.7]} 22... Rcd8 {[%clk 0:02:28.4]} 23. Rad1 {[%clk 0:01:43.6]}
23... b4 {[%clk 0:02:26.6]} 24. axb4 {[%clk 0:01:42.7]} 24... Nxb4 {[%clk
0:02:26.8]} 25. h6 {[%clk 0:01:41]} 25... g6 {[%clk 0:02:26.7]} 26. Qf3 {[%clk
0:01:13.7]} 26... Rfe8 {[%clk 0:02:26]} 27. Qc3 {[%clk 0:01:05.4]} 27... Nd3
{[%clk 0:02:19.7]} 28. Qxc4 {[%clk 0:00:58.8]} 28... Nxb2 {[%clk 0:02:19.2]} 0-1

[Event "Late-Titled-Tuesday-Blitz-June-25-2024"]
[Site "Chess.com"]
[Date "2024.06.25"]
[Round "2"]
[White "BardArtem"]
[Black "Sondremelaa"]
[Result "1-0"]
[WhiteElo "2835"]
[BlackElo "2582"]
[TimeControl "180+1"]
[EndTime "14:14:00 PDT"]
[Termination "BardArtem won by resignation"]

1. e4 {[%clk 0:03:00.9]} 1... e5 {[%clk 0:02:54.7]} 2. Nf3 {[%clk 0:02:59.5]}
2... Nc6 {[%clk 0:02:54.3]} 3. Nc3 {[%clk 0:02:58.7]} 3... Nf6 {[%clk
0:02:54.2]} 4. a4 {[%clk 0:02:59.2]} 4... d5 {[%clk 0:02:48.6]} 5. Bb5 {[%clk
0:02:58.2]} 5... dxe4 {[%clk 0:02:24.7]} 6. Nxe5 {[%clk 0:02:55.8]} 6... Qd6
{[%clk 0:02:19.8]} 7. d4 {[%clk 0:02:55]} 7... exd3 {[%clk 0:02:15.4]} 8. Bf4
{[%clk 0:02:54.7]} 8... a6 {[%clk 0:01:56.1]} 9. Bxc6+ {[%clk 0:02:25.3]} 9...
bxc6 {[%clk 0:01:55.3]} 10. O-O {[%clk 0:02:26.2]} 10... dxc2 {[%clk 0:01:48.9]}
11. Qxc2 {[%clk 0:02:25.2]} 11... Be7 {[%clk 0:01:38.8]} 12. Ng6 {[%clk
0:02:22.8]} 12... Qb4 {[%clk 0:01:38.4]} 13. Nd5 {[%clk 0:02:01.2]} 13... cxd5
{[%clk 0:00:56.8]} 14. Qc6+ {[%clk 0:01:59.2]} 14... Bd7 {[%clk 0:00:55.2]} 15.
Qxa8+ {[%clk 0:01:57.5]} 15... Bd8 {[%clk 0:00:55.7]} 16. Bxc7 {[%clk
0:01:51.9]} 1-0

[Event "Late-Titled-Tuesday-Blitz-June-25-2024"]
[Site "Chess.com"]
[Date "2024.06.25"]
[Round "2"]
[White "Jospem"]
[Black "FloMasterAAK"]
[Result "1-0"]
[WhiteElo "3046"]
[BlackElo "2625"]
[TimeControl "180+1"]
[EndTime "14:14:06 PDT"]
[Termination "Jospem won by resignation"]

1. e4 {[%clk 0:02:58.7]} 1... e5 {[%clk 0:02:57.2]} 2. Nf3 {[%clk 0:02:57.7]}
2... Nc6 {[%clk 0:02:49.5]} 3. Nc3 {[%clk 0:02:57.9]} 3... Nf6 {[%clk
0:02:48.9]} 4. h3 {[%clk 0:02:58.2]} 4... Bb4 {[%clk 0:02:48.2]} 5. a3 {[%clk
0:02:58.1]} 5... Bc5 {[%clk 0:02:44.1]} 6. Nxe5 {[%clk 0:02:57]} 6... Nxe5
{[%clk 0:02:43.2]} 7. d4 {[%clk 0:02:57.3]} 7... d6 {[%clk 0:02:42.8]} 8. dxc5
{[%clk 0:02:57.4]} 8... dxc5 {[%clk 0:02:42.9]} 9. Qxd8+ {[%clk 0:02:58.3]} 9...
Kxd8 {[%clk 0:02:43.6]} 10. Bf4 {[%clk 0:02:59.1]} 10... Ng6 {[%clk 0:02:36.3]}
11. O-O-O+ {[%clk 0:02:59]} 11... Bd7 {[%clk 0:02:36.7]} 12. Bg5 {[%clk
0:02:59.3]} 12... c6 {[%clk 0:02:30.2]} 13. e5 {[%clk 0:02:53.4]} 13... Nxe5
{[%clk 0:02:27.1]} 14. Ne4 {[%clk 0:02:54]} 14... Kc7 {[%clk 0:02:20.2]} 15.
Nxf6 {[%clk 0:02:52.2]} 15... gxf6 {[%clk 0:02:21.1]} 16. Bxf6 {[%clk
0:02:53.1]} 16... Rhe8 {[%clk 0:02:21]} 17. Bh4 {[%clk 0:02:49.6]} 17... Bf5
{[%clk 0:02:03.5]} 18. Bg3 {[%clk 0:02:49.9]} 18... Rad8 {[%clk 0:01:51.1]} 19.
Be2 {[%clk 0:02:49.6]} 19... Kc8 {[%clk 0:01:47.4]} 20. Rxd8+ {[%clk 0:02:47.6]}
20... Kxd8 {[%clk 0:01:48]} 21. Rd1+ {[%clk 0:02:48.1]} 21... Kc8 {[%clk
0:01:47.5]} 22. Bf1 {[%clk 0:02:39.1]} 22... b5 {[%clk 0:01:36.5]} 23. Bh2
{[%clk 0:02:39.1]} 23... Nd7 {[%clk 0:01:19.7]} 24. g4 {[%clk 0:02:33.8]} 24...
Be6 {[%clk 0:01:19.7]} 25. Bg2 {[%clk 0:02:25.1]} 25... Kb7 {[%clk 0:01:14.9]}
26. Rd6 {[%clk 0:02:22.9]} 26... Rc8 {[%clk 0:01:10.8]} 27. f4 {[%clk
0:02:22.1]} 27... Nf8 {[%clk 0:00:58.2]} 28. f5 {[%clk 0:02:22.3]} 28... Bc4
{[%clk 0:00:58.2]} 29. b3 {[%clk 0:02:21]} 29... Be2 {[%clk 0:00:55.7]} 30. Kd2
{[%clk 0:02:21.2]} 30... Re8 {[%clk 0:00:50.2]} 31. Bxc6+ {[%clk 0:02:21]} 1-0

[Event "Late-Titled-Tuesday-Blitz-June-25-2024"]
[Site "Chess.com"]
[Date "2024.06.25"]
[Round "2"]
[White "ErikRonka"]
[Black "ilya2700"]
[Result "1-0"]
[WhiteElo "2501"]
[BlackElo "2249"]
[TimeControl "180+1"]
[EndTime "14:14:15 PDT"]
[Termination "ErikRonka won by checkmate"]

1. d4 {[%clk 0:03:00.9]} 1... d5 {[%clk 0:02:59.8]} 2. Nf3 {[%clk 0:03:00.4]}
2... e6 {[%clk 0:03:00.3]} 3. g3 {[%clk 0:03:00.3]} 3... Nf6 {[%clk 0:03:00.4]}
4. Bg2 {[%clk 0:03:00.7]} 4... c5 {[%clk 0:03:00.5]} 5. O-O {[%clk 0:03:00.5]}
5... Nc6 {[%clk 0:03:00.9]} 6. c4 {[%clk 0:02:59.6]} 6... Be7 {[%clk 0:03:00.4]}
7. cxd5 {[%clk 0:02:59.2]} 7... exd5 {[%clk 0:03:01.3]} 8. dxc5 {[%clk
0:02:58.6]} 8... Bxc5 {[%clk 0:03:02.2]} 9. a3 {[%clk 0:02:59.1]} 9... O-O
{[%clk 0:03:00.5]} 10. b4 {[%clk 0:02:58.8]} 10... Bb6 {[%clk 0:03:01.1]} 11.
Bb2 {[%clk 0:02:58.3]} 11... Re8 {[%clk 0:03:01]} 12. Nc3 {[%clk 0:02:45.3]}
12... Bg4 {[%clk 0:02:59.2]} 13. Na4 {[%clk 0:02:43.7]} 13... Qe7 {[%clk
0:02:19.9]} 14. Nxb6 {[%clk 0:02:42.8]} 14... axb6 {[%clk 0:02:20.8]} 15. Re1
{[%clk 0:02:25.2]} 15... Rad8 {[%clk 0:02:18.1]} 16. Nd4 {[%clk 0:02:23.6]}
16... Bh5 {[%clk 0:01:42.7]} 17. Rc1 {[%clk 0:02:12.5]} 17... Ne4 {[%clk
0:01:05.2]} 18. Nxc6 {[%clk 0:01:39.6]} 18... bxc6 {[%clk 0:01:06.1]} 19. Qd4
{[%clk 0:01:33.1]} 19... c5 {[%clk 0:01:01.6]} 20. Qxg7# {[%clk 0:01:31.8]} 1-0

[Event "Late-Titled-Tuesday-Blitz-June-25-2024"]
[Site "Chess.com"]
[Date "2024.06.25"]
[Round "2"]
[White "HamedWafa4"]
[Black "duone"]
[Result "1-0"]
[WhiteElo "2775"]
[BlackElo "2409"]
[TimeControl "180+1"]
[EndTime "14:14:16 PDT"]
[Termination "HamedWafa4 won by resignation"]

1. e4 {[%clk 0:03:00.1]} 1... e6 {[%clk 0:02:58.8]} 2. d4 {[%clk 0:03:00]} 2...
d5 {[%clk 0:02:57.5]} 3. e5 {[%clk 0:03:00.3]} 3... c5 {[%clk 0:02:57.4]} 4. c3
{[%clk 0:02:58]} 4... Nc6 {[%clk 0:02:57.6]} 5. Nf3 {[%clk 0:02:57.4]} 5... Qb6
{[%clk 0:02:58.1]} 6. Be2 {[%clk 0:02:57.3]} 6... Nh6 {[%clk 0:02:56]} 7. Bxh6
{[%clk 0:02:56.9]} 7... gxh6 {[%clk 0:02:55.7]} 8. Qd2 {[%clk 0:02:56.9]} 8...
Bd7 {[%clk 0:02:38]} 9. O-O {[%clk 0:02:55.6]} 9... Be7 {[%clk 0:02:36.1]} 10.
Na3 {[%clk 0:02:48.5]} 10... h5 {[%clk 0:02:34.4]} 11. Nb5 {[%clk 0:02:45.9]}
11... a6 {[%clk 0:02:28.7]} 12. Nd6+ {[%clk 0:02:45.9]} 12... Bxd6 {[%clk
0:02:29.1]} 13. exd6 {[%clk 0:02:46.8]} 13... O-O-O {[%clk 0:02:26.9]} 14. Ne5
{[%clk 0:02:43.6]} 14... Nxe5 {[%clk 0:02:25.9]} 15. dxe5 {[%clk 0:02:43.9]}
15... Rhg8 {[%clk 0:02:25.2]} 16. Bxh5 {[%clk 0:02:42.2]} 16... Rg7 {[%clk
0:02:23.3]} 17. Bf3 {[%clk 0:02:40.4]} 17... Rdg8 {[%clk 0:02:22.9]} 18. g3
{[%clk 0:02:40.6]} 18... Bc6 {[%clk 0:02:22.7]} 19. b4 {[%clk 0:02:39.1]} 19...
c4 {[%clk 0:02:21.9]} 20. Rad1 {[%clk 0:02:33.7]} 20... Qd8 {[%clk 0:02:21]} 21.
Qd4 {[%clk 0:02:32.4]} 21... Kb8 {[%clk 0:02:19.2]} 22. Bg2 {[%clk 0:02:32.6]}
22... Qg5 {[%clk 0:02:18.9]} 23. Ra1 {[%clk 0:02:28.3]} 23... h5 {[%clk
0:02:17.1]} 24. a4 {[%clk 0:02:27.1]} 24... h4 {[%clk 0:02:16.5]} 25. b5 {[%clk
0:02:27.7]} 25... hxg3 {[%clk 0:02:09.2]} 26. fxg3 {[%clk 0:02:27.1]} 26... Bd7
{[%clk 0:01:41.2]} 27. bxa6 {[%clk 0:02:24.6]} 27... Rh7 {[%clk 0:01:37.8]} 28.
Qb6 {[%clk 0:02:21.9]} 28... Bc6 {[%clk 0:01:34.5]} 29. Qc7+ {[%clk 0:02:13.9]}
29... Ka8 {[%clk 0:01:32.2]} 30. Rab1 {[%clk 0:02:03.9]} 30... Qe3+ {[%clk
0:01:30.4]} 31. Rf2 {[%clk 0:01:59.9]} 31... Qa7 {[%clk 0:01:26.8]} 32. axb7+
{[%clk 0:01:57.4]} 32... Bxb7 {[%clk 0:01:27.7]} 33. d7 {[%clk 0:01:47.4]} 33...
Qb8 {[%clk 0:01:18]} 34. Qa5+ {[%clk 0:01:44.4]} 34... Qa7 {[%clk 0:01:16.7]}
35. d8=Q+ {[%clk 0:01:44.6]} 1-0

[Event "Late-Titled-Tuesday-Blitz-June-25-2024"]
[Site "Chess.com"]
[Date "2024.06.25"]
[Round "2"]
[White "kubal123"]
[Black "Perecke"]
[Result "0-1"]
[WhiteElo "2286"]
[BlackElo "2513"]
[TimeControl "180+1"]
[EndTime "14:14:18 PDT"]
[Termination "Perecke won by resignation"]

1. d4 {[%clk 0:03:00.9]} 1... d5 {[%clk 0:02:59.8]} 2. c4 {[%clk 0:03:01.3]}
2... e6 {[%clk 0:02:59.2]} 3. Nf3 {[%clk 0:03:01.7]} 3... Nf6 {[%clk 0:02:59.8]}
4. g3 {[%clk 0:03:02.2]} 4... Be7 {[%clk 0:03:00.1]} 5. Bg2 {[%clk 0:03:02.7]}
5... O-O {[%clk 0:03:00.3]} 6. O-O {[%clk 0:03:03.5]} 6... dxc4 {[%clk
0:03:00.6]} 7. Qc2 {[%clk 0:03:03.8]} 7... a6 {[%clk 0:03:01]} 8. a4 {[%clk
0:03:04.5]} 8... c6 {[%clk 0:02:59.1]} 9. Qxc4 {[%clk 0:03:04]} 9... b5 {[%clk
0:02:58.5]} 10. Qc2 {[%clk 0:03:03.9]} 10... Bb7 {[%clk 0:02:55.3]} 11. Ne5
{[%clk 0:03:00.9]} 11... Qxd4 {[%clk 0:02:48.6]} 12. Bf4 {[%clk 0:03:00.1]}
12... Nd5 {[%clk 0:02:39.7]} 13. Rd1 {[%clk 0:02:54.7]} 13... Qc5 {[%clk
0:02:39.6]} 14. Qxc5 {[%clk 0:02:29]} 14... Bxc5 {[%clk 0:02:40.5]} 15. Rc1
{[%clk 0:02:28.5]} 15... Nxf4 {[%clk 0:02:10.7]} 16. gxf4 {[%clk 0:02:21.3]}
16... Bd4 {[%clk 0:02:10.6]} 17. Nc3 {[%clk 0:02:09]} 17... b4 {[%clk
0:02:09.2]} 18. Ne4 {[%clk 0:02:08.5]} 18... Bxb2 {[%clk 0:02:08.7]} 19. Rab1
{[%clk 0:02:08.6]} 19... Bxc1 {[%clk 0:02:08.8]} 20. Rxc1 {[%clk 0:02:08.7]}
20... f6 {[%clk 0:02:07.4]} 21. Nc4 {[%clk 0:02:01.4]} 21... c5 {[%clk
0:01:55.3]} 22. Ncd6 {[%clk 0:01:55.2]} 22... Bxe4 {[%clk 0:01:53.3]} 23. Bxe4
{[%clk 0:01:55.3]} 23... Nd7 {[%clk 0:01:52.3]} 24. Bxa8 {[%clk 0:01:54.7]}
24... Rxa8 {[%clk 0:01:51.5]} 25. Ne4 {[%clk 0:01:53]} 25... Rc8 {[%clk
0:01:42]} 26. Rd1 {[%clk 0:01:51.9]} 26... Rc7 {[%clk 0:01:39.7]} 27. Rd6 {[%clk
0:01:51.1]} 27... c4 {[%clk 0:01:38.7]} 28. Rxe6 {[%clk 0:01:47.8]} 28... c3
{[%clk 0:01:24.4]} 29. Nd6 {[%clk 0:01:48.7]} 29... c2 {[%clk 0:01:22.1]} 30.
Re8+ {[%clk 0:01:29.2]} 30... Nf8 {[%clk 0:01:22]} 0-1

[Event "Late-Titled-Tuesday-Blitz-June-25-2024"]
[Site "Chess.com"]
[Date "2024.06.25"]
[Round "2"]
[White "jens1102"]
[Black "MITerryble"]
[Result "0-1"]
[WhiteElo "2606"]
[BlackElo "2974"]
[TimeControl "180+1"]
[EndTime "14:14:47 PDT"]
[Termination "MITerryble won by resignation"]

1. e4 {[%clk 0:03:00.9]} 1... e6 {[%clk 0:02:53.6]} 2. d4 {[%clk 0:03:00]} 2...
d5 {[%clk 0:02:53.6]} 3. exd5 {[%clk 0:03:00.9]} 3... exd5 {[%clk 0:02:53.9]} 4.
Nf3 {[%clk 0:02:59.6]} 4... Nc6 {[%clk 0:02:54.4]} 5. Bd3 {[%clk 0:02:59.3]}
5... Bd6 {[%clk 0:02:54.3]} 6. O-O {[%clk 0:02:58.8]} 6... Bg4 {[%clk
0:02:54.6]} 7. c3 {[%clk 0:02:58.2]} 7... Nge7 {[%clk 0:02:54.9]} 8. Re1 {[%clk
0:02:57.1]} 8... Qd7 {[%clk 0:02:54.9]} 9. Nbd2 {[%clk 0:02:55.1]} 9... f6
{[%clk 0:02:54.4]} 10. Nf1 {[%clk 0:02:55]} 10... O-O-O {[%clk 0:02:50.4]} 11.
b4 {[%clk 0:02:53.9]} 11... g5 {[%clk 0:02:49]} 12. a4 {[%clk 0:02:35.2]} 12...
Ng6 {[%clk 0:02:48.5]} 13. Ne3 {[%clk 0:02:30]} 13... Be6 {[%clk 0:02:48.7]} 14.
Qc2 {[%clk 0:01:56.5]} 14... Nce7 {[%clk 0:02:44]} 15. a5 {[%clk 0:01:15.8]}
15... g4 {[%clk 0:02:43.3]} 16. Nd2 {[%clk 0:01:14.8]} 16... f5 {[%clk
0:02:43.2]} 17. Nef1 {[%clk 0:01:12.3]} 17... Nf4 {[%clk 0:02:35.6]} 18. Nb3
{[%clk 0:01:10.4]} 18... Nxd3 {[%clk 0:02:35.8]} 19. Qxd3 {[%clk 0:01:10.7]}
19... Ng6 {[%clk 0:02:18.9]} 20. a6 {[%clk 0:01:09.7]} 20... b6 {[%clk
0:02:18.9]} 21. Nc5 {[%clk 0:01:09.5]} 21... bxc5 {[%clk 0:02:03.4]} 22. bxc5
{[%clk 0:01:10.4]} 22... Bf4 {[%clk 0:02:03.7]} 23. Qb1 {[%clk 0:01:07.1]} 23...
Qc6 {[%clk 0:02:03]} 24. Rxe6 {[%clk 0:01:03.3]} 24... Qxe6 {[%clk 0:02:02.7]}
25. Qb7+ {[%clk 0:00:52.3]} 25... Kd7 {[%clk 0:02:03.1]} 26. Bxf4 {[%clk
0:00:48.9]} 26... Nxf4 {[%clk 0:02:02.8]} 27. Ne3 {[%clk 0:00:46.7]} 27... Rb8
{[%clk 0:02:00.6]} 28. Qxa7 {[%clk 0:00:45.9]} 28... Ra8 {[%clk 0:02:01]} 29.
Qb7 {[%clk 0:00:42.5]} 29... Rhb8 {[%clk 0:02:01.3]} 0-1

[Event "Late-Titled-Tuesday-Blitz-June-25-2024"]
[Site "Chess.com"]
[Date "2024.06.25"]
[Round "2"]
[White "LikeWater"]
[Black "Bkmzzzzz"]
[Result "1-0"]
[WhiteElo "2707"]
[BlackElo "2396"]
[TimeControl "180+1"]
[EndTime "14:14:52 PDT"]
[Termination "LikeWater won by checkmate"]

1. e4 {[%clk 0:03:00.9]} 1... d6 {[%clk 0:02:59.4]} 2. d4 {[%clk 0:03:00.6]}
2... Nf6 {[%clk 0:02:58.4]} 3. Nc3 {[%clk 0:03:00.8]} 3... e5 {[%clk 0:02:52.7]}
4. Nge2 {[%clk 0:02:59.4]} 4... Be7 {[%clk 0:02:49.3]} 5. h3 {[%clk 0:02:59.2]}
5... c6 {[%clk 0:02:46.8]} 6. a4 {[%clk 0:02:58]} 6... O-O {[%clk 0:02:46]} 7.
g4 {[%clk 0:02:58]} 7... b6 {[%clk 0:02:23.6]} 8. Bg2 {[%clk 0:02:54.3]} 8... a6
{[%clk 0:02:23]} 9. f4 {[%clk 0:02:45.4]} 9... exf4 {[%clk 0:02:08.5]} 10. Bxf4
{[%clk 0:02:46.3]} 10... Bb7 {[%clk 0:02:03.5]} 11. O-O {[%clk 0:02:37.3]} 11...
b5 {[%clk 0:02:01.6]} 12. e5 {[%clk 0:02:24.3]} 12... dxe5 {[%clk 0:01:57.6]}
13. dxe5 {[%clk 0:02:24.7]} 13... Nd5 {[%clk 0:01:51.1]} 14. Nxd5 {[%clk
0:02:17.6]} 14... cxd5 {[%clk 0:01:52]} 15. axb5 {[%clk 0:02:16.7]} 15... axb5
{[%clk 0:01:52.9]} 16. Rxa8 {[%clk 0:02:16.8]} 16... Bxa8 {[%clk 0:01:53.8]} 17.
Nd4 {[%clk 0:02:16.2]} 17... Bc5 {[%clk 0:01:53.3]} 18. Kh1 {[%clk 0:02:13.8]}
18... Qb6 {[%clk 0:01:51.7]} 19. Nf5 {[%clk 0:02:12.5]} 19... Qb7 {[%clk
0:01:41.1]} 20. Qd3 {[%clk 0:02:07.1]} 20... Na6 {[%clk 0:01:26.9]} 21. Bg5
{[%clk 0:02:02.6]} 21... Nb4 {[%clk 0:01:23.4]} 22. Qd2 {[%clk 0:02:01.6]} 22...
Qa7 {[%clk 0:01:15.5]} 23. Bf6 {[%clk 0:01:56.8]} 23... Be3 {[%clk 0:00:25.5]}
24. Nxe3 {[%clk 0:01:49.6]} 24... gxf6 {[%clk 0:00:25.8]} 25. Nf5 {[%clk
0:01:50.1]} 25... fxe5 {[%clk 0:00:16.5]} 26. Qg5+ {[%clk 0:01:49.8]} 26... Kh8
{[%clk 0:00:17.1]} 27. Qg7# {[%clk 0:01:50.7]} 1-0